[Event "Titled Tuesday Blitz May 4 2021"]
[White "Brunner, Nicolas"]
[Black "Valle Maytin, Luis Enrique"]
[WhiteFideId "620246"]
[BlackFideId "3503666"]
[WhiteElo "2372"]
[BlackElo "2296"]
[Result "1-0"]
[Round "03"]
[TimeControl "180+1"]
[Date "2021.05.04"]
[WhiteClock "0:00:14"]
[BlackClock "0:00:01"]

1. d4 {[%clk 0:03:00]}  d5 {[%clk 0:02:58]} 2. c4 {[%clk 0:03:00]}  c6 {[%clk 0:02:58]} 3. Nc3 {[%clk 0:02:59]}  Nf6 {[%clk 0:02:57]} 4. e3 {[%clk 0:02:59]}  e6 {[%clk 0:02:56]} 5. Nf3 {[%clk 0:02:59]}  Nbd7 {[%clk 0:02:56]} 6. Qc2 {[%clk 0:02:59]}  Bd6 {[%clk 0:02:55]} 7. Bd3 {[%clk 0:02:58]}  O-O {[%clk 0:02:55]} 8. O-O {[%clk 0:02:58]}  b6 {[%clk 0:02:50]} 9. e4 {[%clk 0:02:53]}  dxe4 {[%clk 0:02:50]} 10. Nxe4 {[%clk 0:02:53]}  Nxe4 {[%clk 0:02:49]} 11. Bxe4 {[%clk 0:02:52]}  Nf6 {[%clk 0:02:33]} 12. Bxc6 {[%clk 0:02:52]}  Rb8 {[%clk 0:02:29]} 13. Bg5 {[%clk 0:02:32]}  Qc7 {[%clk 0:02:29]} 14. Bxf6 {[%clk 0:02:30]}  Qxc6 {[%clk 0:02:20]} 15. Be5 {[%clk 0:02:28]}  Ba6 {[%clk 0:02:13]} 16. b3 {[%clk 0:02:24]}  Bb7 {[%clk 0:01:55]} 17. Rad1 {[%clk 0:02:10]}  Rbc8 {[%clk 0:01:48]} 18. Bxd6 {[%clk 0:02:01]}  Qxd6 {[%clk 0:01:47]} 19. Ne5 {[%clk 0:01:54]}  f6 {[%clk 0:01:41]} 20. Ng4 {[%clk 0:01:51]}  Qf4 {[%clk 0:01:24]} 21. Ne3 {[%clk 0:01:49]}  Rfd8 {[%clk 0:01:24]} 22. Qc3 {[%clk 0:01:42]}  Rd6 {[%clk 0:01:21]} 23. Rd2 {[%clk 0:01:41]}  Rcd8 {[%clk 0:01:21]} 24. Rfd1 {[%clk 0:01:41]}  Qe4 {[%clk 0:01:16]} 25. f3 {[%clk 0:01:40]}  Qf4 {[%clk 0:01:12]} 26. d5 {[%clk 0:01:27]}  exd5 {[%clk 0:01:03]} 27. Nxd5 {[%clk 0:01:18]}  Bxd5 {[%clk 0:00:48]} 28. Rxd5 {[%clk 0:01:15]}  h5 {[%clk 0:00:39]} 29. Qd4 {[%clk 0:01:09]}  Rxd5 {[%clk 0:00:22]} 30. cxd5 {[%clk 0:01:09]}  Qxd4+ {[%clk 0:00:21]} 31. Rxd4 {[%clk 0:01:08]}  Kf7 {[%clk 0:00:22]} 32. Kf2 {[%clk 0:01:07]}  Ke7 {[%clk 0:00:22]} 33. Ke3 {[%clk 0:00:55]}  Kd6 {[%clk 0:00:22]} 34. Kf4 {[%clk 0:00:50]}  g6 {[%clk 0:00:20]} 35. g4 {[%clk 0:00:39]}  hxg4 {[%clk 0:00:20]} 36. fxg4 {[%clk 0:00:39]}  Rh8 {[%clk 0:00:20]} 37. Kg3 {[%clk 0:00:38]}  g5 {[%clk 0:00:16]} 38. Rd2 {[%clk 0:00:31]}  b5 {[%clk 0:00:15]} 39. Rf2 {[%clk 0:00:28]}  Rf8 {[%clk 0:00:13]} 40. Rf5 {[%clk 0:00:27]}  a5 {[%clk 0:00:13]} 41. h4 {[%clk 0:00:26]}  gxh4+ {[%clk 0:00:12]} 42. Kxh4 {[%clk 0:00:26]}  Rh8+ {[%clk 0:00:12]} 43. Kg3 {[%clk 0:00:27]}  Rh1 {[%clk 0:00:13]} 44. Rxf6+ {[%clk 0:00:24]}  Kxd5 {[%clk 0:00:13]} 45. g5 {[%clk 0:00:21]}  Ra1 {[%clk 0:00:13]} 46. Rf2 {[%clk 0:00:21]}  Ke5 {[%clk 0:00:11]} 47. Kg4 {[%clk 0:00:20]}  Rg1+ {[%clk 0:00:11]} 48. Kh5 {[%clk 0:00:20]}  a4 {[%clk 0:00:10]} 49. bxa4 {[%clk 0:00:18]}  bxa4 {[%clk 0:00:11]} 50. g6 {[%clk 0:00:17]}  Ke6 {[%clk 0:00:10]} 51. Kh6 {[%clk 0:00:17]}  Rh1+ {[%clk 0:00:10]} 52. Kg7 {[%clk 0:00:17]}  Rg1 {[%clk 0:00:10]} 53. Kh7 {[%clk 0:00:17]}  Rh1+ {[%clk 0:00:09]} 54. Kg8 {[%clk 0:00:17]}  Ke7 {[%clk 0:00:10]} 55. g7 {[%clk 0:00:17]}  a3 {[%clk 0:00:10]} 56. Rf3 {[%clk 0:00:17]}  Rb1 {[%clk 0:00:03]} 57. Rxa3 {[%clk 0:00:16]}  Rg1 {[%clk 0:00:01]} 58. Rh3 {[%clk 0:00:15]}  Rf1 {[%clk 0:00:01]} 59. Kh8 {[%clk 0:00:14]} 1-0


[Site "https://www.chess.com"]

[Event "Titled Tuesday Blitz May 4 2021"]
[White "Carrasco Miranda, Andres"]
[Black "Harshavardhan G B"]
[WhiteFideId "3405990"]
[BlackFideId "25059009"]
[WhiteElo "2177"]
[BlackElo "1825"]
[Result "0-1"]
[Round "03"]
[TimeControl "180+1"]
[Date "2021.05.04"]
[WhiteClock "0:00:05"]
[BlackClock "0:00:35"]

1. d4 {[%clk 0:03:00]}  d5 {[%clk 0:02:58]} 2. c4 {[%clk 0:02:59]}  c6 {[%clk 0:02:58]} 3. Nf3 {[%clk 0:02:59]}  Nf6 {[%clk 0:02:57]} 4. e3 {[%clk 0:02:59]}  e6 {[%clk 0:02:55]} 5. b3 {[%clk 0:02:59]}  Bb4+ {[%clk 0:02:51]} 6. Nbd2 {[%clk 0:02:58]}  Nbd7 {[%clk 0:02:48]} 7. Bd3 {[%clk 0:02:58]}  Ne4 {[%clk 0:02:45]} 8. O-O {[%clk 0:02:57]}  f5 {[%clk 0:02:44]} 9. Qc2 {[%clk 0:02:53]}  O-O {[%clk 0:02:38]} 10. a3 {[%clk 0:02:53]}  Bd6 {[%clk 0:02:36]} 11. b4 {[%clk 0:02:53]}  Qf6 {[%clk 0:02:36]} 12. b5 {[%clk 0:02:53]}  Qh6 {[%clk 0:02:32]} 13. bxc6 {[%clk 0:02:51]}  bxc6 {[%clk 0:02:31]} 14. cxd5 {[%clk 0:02:51]}  cxd5 {[%clk 0:02:31]} 15. Qc6 {[%clk 0:02:41]}  Rb8 {[%clk 0:02:06]} 16. Bxe4 {[%clk 0:02:37]}  Rb6 {[%clk 0:02:02]} 17. Bxd5 {[%clk 0:02:07]}  Rxc6 {[%clk 0:01:57]} 18. Bxc6 {[%clk 0:02:08]}  Nf6 {[%clk 0:01:53]} 19. h3 {[%clk 0:01:56]}  Ba6 {[%clk 0:01:50]} 20. Rd1 {[%clk 0:01:49]}  Rc8 {[%clk 0:01:47]} 21. Ba4 {[%clk 0:01:47]}  Ne4 {[%clk 0:01:37]} 22. Nxe4 {[%clk 0:01:35]}  fxe4 {[%clk 0:01:38]} 23. Ne5 {[%clk 0:01:32]}  Be2 {[%clk 0:01:24]} 24. Re1 {[%clk 0:01:27]}  Bxe5 {[%clk 0:01:15]} 25. dxe5 {[%clk 0:01:27]}  Bf3 {[%clk 0:01:08]} 26. gxf3 {[%clk 0:01:05]}  exf3 {[%clk 0:01:09]} 27. Kh2 {[%clk 0:00:49]}  Qg5 {[%clk 0:01:07]} 28. Rg1 {[%clk 0:00:38]}  Qxe5+ {[%clk 0:01:04]} 29. Kh1 {[%clk 0:00:38]}  Qxa1 {[%clk 0:01:04]} 30. Bd2 {[%clk 0:00:39]}  Qb2 {[%clk 0:00:57]} 31. Bd7 {[%clk 0:00:35]}  Qxd2 {[%clk 0:00:50]} 32. Bxe6+ {[%clk 0:00:34]}  Kh8 {[%clk 0:00:49]} 33. Bxc8 {[%clk 0:00:34]}  Qxf2 {[%clk 0:00:50]} 34. Bg4 {[%clk 0:00:25]}  Qxe3 {[%clk 0:00:47]} 35. Rd1 {[%clk 0:00:20]}  h5 {[%clk 0:00:45]} 36. Bf5 {[%clk 0:00:16]}  g6 {[%clk 0:00:43]} 37. Rd8+ {[%clk 0:00:14]}  Kg7 {[%clk 0:00:43]} 38. Rd7+ {[%clk 0:00:15]}  Kf6 {[%clk 0:00:41]} 39. Bd3 {[%clk 0:00:15]}  f2 {[%clk 0:00:40]} 40. Bf1 {[%clk 0:00:14]}  Qxa3 {[%clk 0:00:36]} 41. Rd2 {[%clk 0:00:10]}  Qg3 {[%clk 0:00:35]} 42. Ra2 {[%clk 0:00:05]}  Qg1# {[%clk 0:00:35]} 0-1


[Site "https://www.chess.com"]

[Event "Titled Tuesday Blitz May 4 2021"]
[White "Chitlange Sakshi"]
[Black "volunteers1998"]
[WhiteFideId "35002899"]
[WhiteElo "1787"]
[BlackElo "2184"]
[Result "1-0"]
[Round "03"]
[TimeControl "180+1"]
[Date "2021.05.04"]
[WhiteClock "0:00:59"]
[BlackClock "0:01:05"]

1. d4 {[%clk 0:03:00]}  f5 {[%clk 0:02:58]} 2. Nc3 {[%clk 0:03:00]}  Nf6 {[%clk 0:02:57]} 3. Bg5 {[%clk 0:02:59]}  d5 {[%clk 0:02:56]} 4. Bxf6 {[%clk 0:02:59]}  exf6 {[%clk 0:02:55]} 5. e3 {[%clk 0:03:00]}  c6 {[%clk 0:02:46]} 6. Bd3 {[%clk 0:02:58]}  Bd6 {[%clk 0:02:40]} 7. Qf3 {[%clk 0:02:51]}  g6 {[%clk 0:02:35]} 8. Nge2 {[%clk 0:02:50]}  Be6 {[%clk 0:02:28]} 9. Nf4 {[%clk 0:02:43]}  Bf7 {[%clk 0:02:25]} 10. h4 {[%clk 0:02:41]}  Qe7 {[%clk 0:02:22]} 11. a3 {[%clk 0:02:36]}  Nd7 {[%clk 0:02:19]} 12. g3 {[%clk 0:02:33]}  O-O-O {[%clk 0:02:10]} 13. Na4 {[%clk 0:02:09]}  Kb8 {[%clk 0:02:00]} 14. b4 {[%clk 0:02:06]}  Nf8 {[%clk 0:01:45]} 15. Nc5 {[%clk 0:02:02]}  Ne6 {[%clk 0:01:38]} 16. Nfxe6 {[%clk 0:01:53]}  Bxe6 {[%clk 0:01:38]} 17. Rc1 {[%clk 0:01:35]}  Bf7 {[%clk 0:01:31]} 18. c4 {[%clk 0:01:30]}  Rhe8 {[%clk 0:01:26]} 19. O-O {[%clk 0:01:14]}  h6 {[%clk 0:01:20]} 20. Nb3 {[%clk 0:00:59]}  dxc4 {[%clk 0:01:15]} 21. Bxc4 {[%clk 0:00:59]}  Bxc4 {[%clk 0:01:15]} 22. Rxc4 {[%clk 0:01:00]}  Qe5 {[%clk 0:01:05]} 23. dxe5 {[%clk 0:00:59]} 1-0


[Site "https://www.chess.com"]

[Event "Titled Tuesday Blitz May 4 2021"]
[White "Chyzy, Jakub"]
[Black "maxsergej"]
[WhiteFideId "21806209"]
[WhiteElo "2013"]
[BlackElo "2039"]
[Result "1-0"]
[Round "03"]
[TimeControl "180+1"]
[Date "2021.05.04"]
[WhiteClock "0:00:02"]
[BlackClock "0:00:01"]

1. b3 {[%clk 0:03:00]}  Nf6 {[%clk 0:02:59]} 2. Bb2 {[%clk 0:02:59]}  g6 {[%clk 0:02:59]} 3. e4 {[%clk 0:02:59]}  Bg7 {[%clk 0:02:58]} 4. e5 {[%clk 0:02:57]}  Nd5 {[%clk 0:02:58]} 5. d4 {[%clk 0:02:58]}  d6 {[%clk 0:02:54]} 6. c4 {[%clk 0:02:58]}  Nb6 {[%clk 0:02:54]} 7. exd6 {[%clk 0:02:58]}  cxd6 {[%clk 0:02:52]} 8. Nf3 {[%clk 0:02:58]}  O-O {[%clk 0:02:51]} 9. Be2 {[%clk 0:02:54]}  Nc6 {[%clk 0:02:46]} 10. O-O {[%clk 0:02:53]}  Re8 {[%clk 0:02:34]} 11. Nc3 {[%clk 0:02:51]}  a6 {[%clk 0:02:29]} 12. d5 {[%clk 0:02:33]}  Ne5 {[%clk 0:02:29]} 13. Nxe5 {[%clk 0:02:32]}  Bxe5 {[%clk 0:02:29]} 14. f4 {[%clk 0:02:30]}  Bg7 {[%clk 0:02:29]} 15. Qd2 {[%clk 0:02:29]}  Nd7 {[%clk 0:02:12]} 16. Ne4 {[%clk 0:02:23]}  Nf6 {[%clk 0:02:12]} 17. Nxf6+ {[%clk 0:02:20]}  exf6 {[%clk 0:02:12]} 18. Bf3 {[%clk 0:02:17]}  Bd7 {[%clk 0:02:00]} 19. Kh1 {[%clk 0:02:00]}  Rc8 {[%clk 0:01:59]} 20. Ba3 {[%clk 0:01:57]}  Bf8 {[%clk 0:01:58]} 21. Rac1 {[%clk 0:01:48]}  b5 {[%clk 0:01:50]} 22. Bb4 {[%clk 0:01:33]}  bxc4 {[%clk 0:01:46]} 23. bxc4 {[%clk 0:01:26]}  Qb6 {[%clk 0:01:43]} 24. Bc3 {[%clk 0:01:13]}  Bg7 {[%clk 0:01:38]} 25. Bd4 {[%clk 0:01:13]}  Qb8 {[%clk 0:01:29]} 26. c5 {[%clk 0:01:06]}  dxc5 {[%clk 0:01:28]} 27. Bxc5 {[%clk 0:01:06]}  Qb5 {[%clk 0:01:19]} 28. Ba3 {[%clk 0:00:46]}  Rxc1 {[%clk 0:01:14]} 29. Rxc1 {[%clk 0:00:45]}  f5 {[%clk 0:01:14]} 30. h3 {[%clk 0:00:42]}  Rc8 {[%clk 0:01:01]} 31. Rxc8+ {[%clk 0:00:38]}  Bxc8 {[%clk 0:01:01]} 32. Qc1 {[%clk 0:00:32]}  Bd7 {[%clk 0:00:59]} 33. Qc7 {[%clk 0:00:29]}  h5 {[%clk 0:00:55]} 34. d6 {[%clk 0:00:24]}  Bh6 {[%clk 0:00:49]} 35. Qd8+ {[%clk 0:00:18]}  Kh7 {[%clk 0:00:48]} 36. Qh4 {[%clk 0:00:03]}  Bg7 {[%clk 0:00:33]} 37. Bxh5 {[%clk 0:00:03]}  gxh5 {[%clk 0:00:31]} 38. Qxh5+ {[%clk 0:00:03]}  Kg8 {[%clk 0:00:31]} 39. Qg5 {[%clk 0:00:04]}  Bc6 {[%clk 0:00:21]} 40. Kh2 {[%clk 0:00:03]}  Be8 {[%clk 0:00:17]} 41. Qe7 {[%clk 0:00:02]}  Kh7 {[%clk 0:00:15]} 42. Qh4+ {[%clk 0:00:01]}  Kg8 {[%clk 0:00:14]} 43. Qg5 {[%clk 0:00:01]}  Kh8 {[%clk 0:00:12]} 44. h4 {[%clk 0:00:02]}  Qb7 {[%clk 0:00:07]} 45. h5 {[%clk 0:00:01]}  Qd7 {[%clk 0:00:05]} 46. h6 {[%clk 0:00:01]}  Bd4 {[%clk 0:00:05]} 47. Bb4 {[%clk 0:00:01]}  Qe6 {[%clk 0:00:02]} 48. Be1 {[%clk 0:00:01]}  Qg6 {[%clk 0:00:02]} 49. Qxg6 {[%clk 0:00:01]}  fxg6 {[%clk 0:00:02]} 50. Bh4 {[%clk 0:00:01]}  Kh7 {[%clk 0:00:02]} 51. Bg5 {[%clk 0:00:02]}  Bd7 {[%clk 0:00:01]} 52. Kg3 {[%clk 0:00:02]} 1-0


[Site "https://www.chess.com"]

[Event "Titled Tuesday Blitz May 4 2021"]
[White "Crevatin, Leo"]
[Black "Djordjevic, Vuk"]
[WhiteFideId "1726307"]
[BlackFideId "902098"]
[WhiteElo "2081"]
[BlackElo "2463"]
[Result "1-0"]
[Round "03"]
[TimeControl "180+1"]
[Date "2021.05.04"]
[WhiteClock "0:00:02"]
[BlackClock "0:00:03"]

1. d4 {[%clk 0:03:00]}  Nf6 {[%clk 0:02:59]} 2. c4 {[%clk 0:03:00]}  e6 {[%clk 0:03:00]} 3. Nc3 {[%clk 0:02:59]}  Bb4 {[%clk 0:03:00]} 4. e3 {[%clk 0:02:56]}  O-O {[%clk 0:03:00]} 5. Bd3 {[%clk 0:02:50]}  d5 {[%clk 0:02:57]} 6. cxd5 {[%clk 0:02:47]}  exd5 {[%clk 0:02:57]} 7. Ne2 {[%clk 0:02:47]}  c5 {[%clk 0:02:53]} 8. a3 {[%clk 0:02:45]}  Bxc3+ {[%clk 0:02:51]} 9. bxc3 {[%clk 0:02:45]}  b6 {[%clk 0:02:50]} 10. O-O {[%clk 0:02:44]}  Ba6 {[%clk 0:02:50]} 11. Bxa6 {[%clk 0:02:43]}  Nxa6 {[%clk 0:02:50]} 12. Ng3 {[%clk 0:02:43]}  Nc7 {[%clk 0:02:41]} 13. f3 {[%clk 0:02:41]}  Re8 {[%clk 0:02:40]} 14. Qd3 {[%clk 0:02:35]}  Qd7 {[%clk 0:02:33]} 15. e4 {[%clk 0:02:28]}  dxe4 {[%clk 0:02:31]} 16. fxe4 {[%clk 0:02:28]}  Rad8 {[%clk 0:02:24]} 17. Bg5 {[%clk 0:02:23]}  cxd4 {[%clk 0:02:19]} 18. Bxf6 {[%clk 0:02:22]}  gxf6 {[%clk 0:02:20]} 19. Nh5 {[%clk 0:02:21]}  Re6 {[%clk 0:01:41]} 20. Qg3+ {[%clk 0:01:35]}  Kf8 {[%clk 0:01:41]} 21. Nxf6 {[%clk 0:01:25]}  Rxf6 {[%clk 0:00:18]} 22. Rxf6 {[%clk 0:01:23]}  d3 {[%clk 0:00:19]} 23. Raf1 {[%clk 0:01:12]}  Ne6 {[%clk 0:00:09]} 24. Qf2 {[%clk 0:00:56]}  Kg8 {[%clk 0:00:03]} 25. Rxf7 {[%clk 0:00:54]}  Qd6 {[%clk 0:00:04]} 26. Qd2 {[%clk 0:00:26]}  Qc5+ {[%clk 0:00:03]} 27. Kh1 {[%clk 0:00:25]}  Qh5 {[%clk 0:00:03]} 28. R7f6 {[%clk 0:00:22]}  Qe2 {[%clk 0:00:02]} 29. Qd1 {[%clk 0:00:11]}  Qxd1 {[%clk 0:00:02]} 30. Rxd1 {[%clk 0:00:11]}  Nc5 {[%clk 0:00:03]} 31. Rf3 {[%clk 0:00:08]}  d2 {[%clk 0:00:03]} 32. Rf2 {[%clk 0:00:07]}  Nxe4 {[%clk 0:00:03]} 33. Re2 {[%clk 0:00:08]}  Nxc3 {[%clk 0:00:03]} 34. Rexd2 {[%clk 0:00:07]}  Re8 {[%clk 0:00:04]} 35. Rc1 {[%clk 0:00:07]}  Na4 {[%clk 0:00:02]} 36. h3 {[%clk 0:00:06]}  Nc5 {[%clk 0:00:02]} 37. Rd6 {[%clk 0:00:05]}  Re7 {[%clk 0:00:03]} 38. Rd8+ {[%clk 0:00:05]}  Kf7 {[%clk 0:00:03]} 39. Rc4 {[%clk 0:00:06]}  Kf6 {[%clk 0:00:03]} 40. Rf4+ {[%clk 0:00:06]}  Ke5 {[%clk 0:00:03]} 41. Rff8 {[%clk 0:00:06]}  Rc7 {[%clk 0:00:03]} 42. Rc8 {[%clk 0:00:05]}  Rb7 {[%clk 0:00:03]} 43. Rh8 {[%clk 0:00:05]}  Kd4 {[%clk 0:00:03]} 44. Rhd8+ {[%clk 0:00:04]}  Kc4 {[%clk 0:00:03]} 45. g4 {[%clk 0:00:03]}  Kb3 {[%clk 0:00:02]} 46. h4 {[%clk 0:00:04]}  Kxa3 {[%clk 0:00:03]} 47. g5 {[%clk 0:00:04]}  Kb4 {[%clk 0:00:03]} 48. h5 {[%clk 0:00:04]}  a5 {[%clk 0:00:04]} 49. g6 {[%clk 0:00:04]}  hxg6 {[%clk 0:00:04]} 50. hxg6 {[%clk 0:00:04]}  a4 {[%clk 0:00:04]} 51. Ra8 {[%clk 0:00:03]}  a3 {[%clk 0:00:04]} 52. Rdb8 {[%clk 0:00:03]}  Rg7 {[%clk 0:00:03]} 53. Rxb6+ {[%clk 0:00:03]}  Kc4 {[%clk 0:00:04]} 54. Rxa3 {[%clk 0:00:03]}  Kd4 {[%clk 0:00:03]} 55. Rd6+ {[%clk 0:00:02]}  Ke5 {[%clk 0:00:03]} 56. Rb6 {[%clk 0:00:02]}  Ne4 {[%clk 0:00:04]} 57. Ra5+ {[%clk 0:00:02]}  Kd4 {[%clk 0:00:03]} 58. Rh5 {[%clk 0:00:02]}  Ng3+ {[%clk 0:00:03]} 59. Kh2 {[%clk 0:00:02]} 1-0


[Site "https://www.chess.com"]

[Event "Titled Tuesday Blitz May 4 2021"]
[White "Cuevas, Alex"]
[Black "Steil-Antoni, Fiona"]
[WhiteFideId "114260"]
[BlackFideId "4001249"]
[WhiteElo "2289"]
[BlackElo "2059"]
[Result "1-0"]
[Round "03"]
[TimeControl "180+1"]
[Date "2021.05.04"]
[WhiteClock "0:00:39"]
[BlackClock "0:00:01"]

1. c4 {[%clk 0:03:00]}  d6 {[%clk 0:02:49]} 2. Nc3 {[%clk 0:02:59]}  e5 {[%clk 0:02:45]} 3. Nf3 {[%clk 0:02:57]}  f5 {[%clk 0:02:43]} 4. d4 {[%clk 0:02:56]}  e4 {[%clk 0:02:42]} 5. Ng5 {[%clk 0:02:56]}  Nf6 {[%clk 0:02:41]} 6. e3 {[%clk 0:02:55]}  Be7 {[%clk 0:02:38]} 7. Nh3 {[%clk 0:02:55]}  c6 {[%clk 0:02:29]} 8. Nf4 {[%clk 0:02:49]}  g5 {[%clk 0:02:09]} 9. Nh5 {[%clk 0:02:49]}  O-O {[%clk 0:02:08]} 10. h4 {[%clk 0:02:42]}  Nxh5 {[%clk 0:01:58]} 11. Qxh5 {[%clk 0:02:40]}  g4 {[%clk 0:01:47]} 12. f3 {[%clk 0:02:40]}  exf3 {[%clk 0:01:39]} 13. gxf3 {[%clk 0:02:39]}  Qe8 {[%clk 0:01:36]} 14. Qxe8 {[%clk 0:02:37]}  Rxe8 {[%clk 0:01:36]} 15. Be2 {[%clk 0:02:31]}  h5 {[%clk 0:01:35]} 16. Bd2 {[%clk 0:02:30]}  a6 {[%clk 0:01:08]} 17. O-O-O {[%clk 0:02:29]}  b5 {[%clk 0:01:07]} 18. Rdg1 {[%clk 0:02:14]}  Bf8 {[%clk 0:00:58]} 19. a3 {[%clk 0:02:06]}  Bh6 {[%clk 0:00:57]} 20. e4 {[%clk 0:01:58]}  Bxd2+ {[%clk 0:00:44]} 21. Kxd2 {[%clk 0:01:59]}  fxe4 {[%clk 0:00:44]} 22. fxe4 {[%clk 0:01:58]}  Be6 {[%clk 0:00:36]} 23. d5 {[%clk 0:01:56]}  Bf7 {[%clk 0:00:22]} 24. Bxg4 {[%clk 0:01:42]}  hxg4 {[%clk 0:00:16]} 25. Rxg4+ {[%clk 0:01:41]}  Kf8 {[%clk 0:00:16]} 26. Rf1 {[%clk 0:01:41]}  Ke7 {[%clk 0:00:16]} 27. Rg7 {[%clk 0:01:39]}  Rf8 {[%clk 0:00:17]} 28. h5 {[%clk 0:01:27]}  Nd7 {[%clk 0:00:15]} 29. dxc6 {[%clk 0:01:22]}  Ne5 {[%clk 0:00:13]} 30. Nd5+ {[%clk 0:01:21]}  Kd8 {[%clk 0:00:12]} 31. c7+ {[%clk 0:01:19]}  Kc8 {[%clk 0:00:12]} 32. Nb6+ {[%clk 0:01:18]}  Kxc7 {[%clk 0:00:12]} 33. Nxa8+ {[%clk 0:01:18]}  Rxa8 {[%clk 0:00:13]} 34. Rfxf7+ {[%clk 0:01:15]}  Nxf7 {[%clk 0:00:14]} 35. Rxf7+ {[%clk 0:01:16]}  Kc6 {[%clk 0:00:15]} 36. cxb5+ {[%clk 0:01:16]}  axb5 {[%clk 0:00:16]} 37. h6 {[%clk 0:01:15]}  Rg8 {[%clk 0:00:13]} 38. h7 {[%clk 0:01:15]}  Rg2+ {[%clk 0:00:13]} 39. Kc3 {[%clk 0:01:14]}  Rh2 {[%clk 0:00:14]} 40. b3 {[%clk 0:01:11]}  Rh3+ {[%clk 0:00:09]} 41. Kb4 {[%clk 0:01:09]}  Rh4 {[%clk 0:00:10]} 42. Re7 {[%clk 0:01:08]}  d5 {[%clk 0:00:10]} 43. h8=Q {[%clk 0:01:06]}  Rxh8 {[%clk 0:00:08]} 44. exd5+ {[%clk 0:01:06]}  Kxd5 {[%clk 0:00:08]} 45. Kxb5 {[%clk 0:01:06]}  Rb8+ {[%clk 0:00:08]} 46. Ka4 {[%clk 0:01:06]}  Ra8+ {[%clk 0:00:08]} 47. Kb4 {[%clk 0:01:07]}  Rb8+ {[%clk 0:00:08]} 48. Kc3 {[%clk 0:01:07]}  Rh8 {[%clk 0:00:08]} 49. Re3 {[%clk 0:01:05]}  Kc5 {[%clk 0:00:08]} 50. a4 {[%clk 0:01:03]}  Rh1 {[%clk 0:00:06]} 51. Re5+ {[%clk 0:01:02]}  Kb6 {[%clk 0:00:06]} 52. Rg5 {[%clk 0:01:02]}  Rh4 {[%clk 0:00:06]} 53. Kb2 {[%clk 0:00:59]}  Rh3 {[%clk 0:00:06]} 54. Ka3 {[%clk 0:00:59]}  Rf3 {[%clk 0:00:06]} 55. a5+ {[%clk 0:00:59]}  Ka6 {[%clk 0:00:06]} 56. Ka4 {[%clk 0:00:59]}  Rf4+ {[%clk 0:00:06]} 57. b4 {[%clk 0:00:59]}  Rh4 {[%clk 0:00:07]} 58. Rg6+ {[%clk 0:00:58]}  Ka7 {[%clk 0:00:08]} 59. a6 {[%clk 0:00:57]}  Rf4 {[%clk 0:00:07]} 60. Ka5 {[%clk 0:00:56]}  Rf1 {[%clk 0:00:08]} 61. Rg7+ {[%clk 0:00:55]}  Ka8 {[%clk 0:00:08]} 62. b5 {[%clk 0:00:56]}  Rf6 {[%clk 0:00:07]} 63. Rg8+ {[%clk 0:00:52]}  Ka7 {[%clk 0:00:06]} 64. Rg3 {[%clk 0:00:49]}  Rh6 {[%clk 0:00:05]} 65. Rc3 {[%clk 0:00:49]}  Rf6 {[%clk 0:00:05]} 66. Rc6 {[%clk 0:00:49]}  Rf5 {[%clk 0:00:04]} 67. Rc7+ {[%clk 0:00:46]}  Kb8 {[%clk 0:00:04]} 68. a7+ {[%clk 0:00:43]}  Ka8 {[%clk 0:00:04]} 69. Rh7 {[%clk 0:00:42]}  Rf1 {[%clk 0:00:01]} 70. Ka6 {[%clk 0:00:39]}  Ra1+ {[%clk 0:00:01]} 71. Kb6 {[%clk 0:00:39]} 1-0


[Site "https://www.chess.com"]

[Event "Titled Tuesday Blitz May 4 2021"]
[White "De Silva, L M S T"]
[Black "Suvorov, Luca"]
[WhiteFideId "9953698"]
[BlackFideId "12977071"]
[WhiteElo "1621"]
[BlackElo "2127"]
[Result "1-0"]
[Round "03"]
[TimeControl "180+1"]
[Date "2021.05.04"]
[WhiteClock "0:00:30"]
[BlackClock "0:00:02"]

1. e4 {[%clk 0:03:00]}  e5 {[%clk 0:03:00]} 2. Nf3 {[%clk 0:03:01]}  Nc6 {[%clk 0:03:00]} 3. Bc4 {[%clk 0:03:01]}  Nf6 {[%clk 0:02:58]} 4. d3 {[%clk 0:03:02]}  Be7 {[%clk 0:02:57]} 5. O-O {[%clk 0:03:02]}  O-O {[%clk 0:02:58]} 6. c3 {[%clk 0:03:03]}  d6 {[%clk 0:02:58]} 7. Bb3 {[%clk 0:03:02]}  Na5 {[%clk 0:02:58]} 8. Bc2 {[%clk 0:03:02]}  c5 {[%clk 0:02:58]} 9. Re1 {[%clk 0:03:02]}  Nc6 {[%clk 0:02:59]} 10. Nbd2 {[%clk 0:03:02]}  Re8 {[%clk 0:02:58]} 11. a4 {[%clk 0:03:02]}  Bf8 {[%clk 0:02:43]} 12. Nf1 {[%clk 0:03:00]}  h6 {[%clk 0:02:42]} 13. Ng3 {[%clk 0:02:58]}  d5 {[%clk 0:02:36]} 14. exd5 {[%clk 0:02:42]}  Nxd5 {[%clk 0:02:35]} 15. h3 {[%clk 0:02:33]}  Nf4 {[%clk 0:02:04]} 16. Bxf4 {[%clk 0:02:28]}  exf4 {[%clk 0:02:05]} 17. Rxe8 {[%clk 0:02:29]}  Qxe8 {[%clk 0:02:06]} 18. Ne4 {[%clk 0:02:29]}  f5 {[%clk 0:02:00]} 19. Ned2 {[%clk 0:02:26]}  g5 {[%clk 0:02:00]} 20. Nc4 {[%clk 0:02:14]}  g4 {[%clk 0:01:50]} 21. Nh2 {[%clk 0:02:04]}  Qh5 {[%clk 0:01:07]} 22. Bb3 {[%clk 0:01:29]}  Kh7 {[%clk 0:00:49]} 23. Qe2 {[%clk 0:01:20]}  Bd7 {[%clk 0:00:46]} 24. hxg4 {[%clk 0:01:13]}  fxg4 {[%clk 0:00:30]} 25. Qe4+ {[%clk 0:01:13]}  Qf5 {[%clk 0:00:25]} 26. Nxg4 {[%clk 0:01:13]}  Bg7 {[%clk 0:00:17]} 27. Nh2 {[%clk 0:00:59]}  Re8 {[%clk 0:00:15]} 28. Qxf5+ {[%clk 0:00:57]}  Bxf5 {[%clk 0:00:16]} 29. Nd6 {[%clk 0:00:57]}  Rf8 {[%clk 0:00:11]} 30. Nxf5 {[%clk 0:00:57]}  Rxf5 {[%clk 0:00:12]} 31. d4 {[%clk 0:00:58]}  Kh8 {[%clk 0:00:09]} 32. d5 {[%clk 0:00:56]}  Na5 {[%clk 0:00:08]} 33. Ba2 {[%clk 0:00:56]}  c4 {[%clk 0:00:08]} 34. Rd1 {[%clk 0:00:56]}  Bf6 {[%clk 0:00:03]} 35. Ng4 {[%clk 0:00:51]}  Bg5 {[%clk 0:00:03]} 36. d6 {[%clk 0:00:51]}  h5 {[%clk 0:00:03]} 37. Nh2 {[%clk 0:00:49]}  Kg7 {[%clk 0:00:04]} 38. Nf3 {[%clk 0:00:50]}  Bd8 {[%clk 0:00:04]} 39. Bb1 {[%clk 0:00:45]}  Rc5 {[%clk 0:00:03]} 40. Nd4 {[%clk 0:00:42]}  Kf6 {[%clk 0:00:03]} 41. Re1 {[%clk 0:00:30]}  Rd5 {[%clk 0:00:03]} 42. Re6+ {[%clk 0:00:30]}  Kf7 {[%clk 0:00:04]} 43. Bg6+ {[%clk 0:00:30]}  Kg7 {[%clk 0:00:03]} 44. Nf5+ {[%clk 0:00:30]}  Kf8 {[%clk 0:00:02]} 45. Re8# {[%clk 0:00:30]} 1-0


[Site "https://www.chess.com"]